Cogmind - Beta 9.6 @@@ ROGUE MODE // 2020.04.23 @ 11:56:54 Player: TravelDemon Result: Destroyed by S-27 Virus with Autogun Performance ------------- Evolutions (3) 1500 Regions Visited (6) 1200 Robots Destroyed (7) 35 Value Destroyed (161) 161 Prototype IDs (0) 0 Alien Tech Used (0) 0 Bonus (0) 0 TOTAL SCORE: 2896 Bonus ------- None Cogmind --------- Core Integrity 0/700 Matter 235/300 Energy 100/100 System Corruption 2% Temperature Cool (0) Movement Core (50) Location -7/Factory Parts ------- > --- POWER (1) -------- (None) > --- PROPULSION (4) --- (None) > --- UTILITY (6) ------ Signal Interpreter Hacking Suite Hacking Suite > --- WEAPON (2) ------- (None) > --- INVENTORY (4) ---- Medium Treads Medium Treads Advanced Sensor Array Hacking Suite Peak State ------------ > --- POWER ------------ (None) > --- PROPULSION ------- Medium Treads Medium Treads Medium Treads > --- UTILITY ---------- Small Storage Unit Advanced Visual Processing Unit Signal Interpreter Hacking Suite Hacking Suite > --- WEAPON ----------- (None) > --- INVENTORY -------- Light Nuclear Core Advanced Sensor Array Hacking Suite Hacking Suite [Rating: 24] Favorites ----------- Power Light Nuclear Core Engine Ion Engine Power Core Light Nuclear Core Propulsion Flight Unit Treads Medium Treads Leg Aluminum Leg Flight Unit Flight Unit Utility Small Storage Unit Device Sensor Array Storage Small Storage Unit Processor Signal Interpreter Hackware Hacking Suite Weapon Assault Rifle Energy Gun Medium Laser Ballistic Gun Assault Rifle Build | -11 -10 -10 -9 -9 -8 -7 ------- Run | Scr Mat Min Mat Min Mat Fac Slots Evolved 6 | . . . 2 . 2 2 Power . | . . . . . . . Propulsion 2 | . . . 2 . . . Utility 4 | . . . . . 2 2 Weapon . | . . . . . . . Parts Attached 23 | 6 6 . 3 . 3 5 Power 3 | 1 2 . . . . . Engine 2 | 1 1 . . . . . Core 1 | . 1 . . . . . Reactor . | . . . . . . . Propulsion 9 | 2 2 . 2 . . 3 Treads 3 | . . . . . . 3 Leg 2 | 2 . . . . . . Wheel . | . . . . . . . Hover . | . . . . . . . Flight 4 | . 2 . 2 . . . Utility 9 | 1 2 . 1 . 3 2 Device 2 | . 1 . . . 1 . Storage 2 | 1 . . 1 . . . Processor 2 | . 1 . . . . 1 Hackware 3 | . . . . . 2 1 Protection . | . . . . . . . Artifact . | . . . . . . . Weapon 2 | 2 . . . . . . Energy Gun 1 | 1 . . . . . . Energy Cannon . | . . . . . . . Ballistic Gun 1 | 1 . . . . . . Ballistic Cannon . | . . . . . . . Launcher . | . . . . . . . Special Weapon . | . . . . . . . Impact Weapon . | . . . . . . . Slashing Weapon . | . . . . . . . Piercing Weapon . | . . . . . . . Special Melee Weapon . | . . . . . . . Unidentified Prototypes . | . . . . . . . Parts Lost 9 | . 2 . 4 . 1 2 Power 2 | . 1 . 1 . . . Propulsion 4 | . . . 3 . 1 . Utility 2 | . . . . . . 2 Weapon 1 | . 1 . . . . . Highest Loss Streak 3 | . 2 . 3 . 1 2 Average Slot Usage (%) 64 | . 82 85 77 33 42 42 Engine 3 | . 8 . . . . . Core 3 | . 4 14 10 . . . Treads 2 | . . . . . . 8 Leg 8 | . 18 . . . . . Flight 10 | . 8 28 39 11 9 . Device 3 | . 4 14 5 . . . Storage 7 | . 9 . 5 11 9 5 Processor 8 | . 4 14 11 11 9 12 Hackware 5 | . . . . . 15 14 Energy Gun 3 | . 8 . . . . . Ballistic Gun 7 | . 14 14 5 . . . Naked Turns . | . . . . . . . Heaviest Build 13 | 13 13 8 9 4 4 4 Greatest Support 56 | 20 20 8 12 4 4 56 Greatest Overweight (x) 1 | . . . . . 1 1 Average Overweight (x) . | . . . . . . . Largest Inventory Capacity 6 | 6 6 4 6 6 6 6 Average Capacity 5 | 4 5 4 5 6 6 5 Most Carried 6 | 2 6 4 6 5 4 6 Average Carried 4 | 1 4 4 4 5 3 4 Final Capacity 6 | 6 4 4 6 6 6 4 Final Carried 5 | 2 4 4 5 5 4 4 Class Distribution -------------------- 35% | Hacker-Mutant 35% | Mutant 28% | Scavenger-Mutant Dominant Class ---------------- Mutant | -10/Materials Scavenger-Mutant | -10/Mines Scavenger-Mutant | -9/Materials Mutant | -9/Mines Hacker-Mutant | -8/Materials Hacker-Mutant | -7/Factory Resources | -11 -10 -10 -9 -9 -8 -7 ----------- Run | Scr Mat Min Mat Min Mat Fac Matter Collected 381 | 211 160 . . 10 . . Remotely . | . . . . . . . Salvage Created 218 | . 218 . . . . . Parts 18 | . 18 . . . . . Haulers Intercepted . | . . . . . . . Recyclers Shooed 1 | . 1 . . . . . Parts Field Recycled . | . . . . . . . Retrieved Matter . | . . . . . . . Parts Self-Destructed . | . . . . . . . Prevented . | . . . . . . . Kills | -11 -10 -10 -9 -9 -8 -7 ------- Run | Scr Mat Min Mat Min Mat Fac Combat Hostiles Destroyed 6 | . 6 . . . . . Guns 6 | . 6 . . . . . Classes Destroyed 3 | . 3 . . . . . Watcher 1 | . 1 . . . . . Swarmer 3 | . 3 . . . . . Grunt 3 | . 3 . . . . . Best Kill Streak 4 | . 4 . . . . . Combat Bots Only 3 | . 3 . . . . . Max Kills in Single Turn 1 | . 1 . . . . . Gunslinging . | . . . . . . . Exploded . | . . . . . . . Melee . | . . . . . . . Uniques/NPCs Destroyed . | . . . . . . . Combat | -11 -10 -10 -9 -9 -8 -7 -------- Run | Scr Mat Min Mat Min Mat Fac Damage Taken 1403 | . 316 . 155 . 118 814 Core 874 | . 64 . 35 . 60 715 Absorbed by Shields . | . . . . . . . Core Remaining (%) 88 | 100 . 74 . 91 89 . Volleys Fired 20 | . 20 . . . . . Largest 2 | . 2 . . . . . Hottest 70 | . 70 . . . . . Shots Fired 33 | . 33 . . . . . Gun 33 | . 33 . . . . . Cannon . | . . . . . . . Launcher . | . . . . . . . Special . | . . . . . . . Kinetic 20 | . 20 . . . . . Thermal 13 | . 13 . . . . . Explosive . | . . . . . . . Electromagnetic . | . . . . . . . Robot Hit Streak 6 | . 6 . . . . . Robot Miss Streak 2 | . 2 . . . . . Penetration Max . | . . . . . . . Secondary Targets 1 | . 1 . . . . . Max Gunslinging Chain 1 | . 1 . . . . . Shots Hit Robots 20 | . 20 . . . . . Core Hits 10 | . 10 . . . . . Critical Hits . | . . . . . . . Critical Kills . | . . . . . . . Critical Parts Destroyed . | . . . . . . . Melee Attacks . | . . . . . . . Impact . | . . . . . . . Slashing . | . . . . . . . Piercing . | . . . . . . . Sneak Attacks . | . . . . . . . Combat Hostiles . | . . . . . . . Follow-up Attacks . | . . . . . . . Damage Inflicted 227 | . 227 . . . . . Guns 227 | . 227 . . . . . Cannons . | . . . . . . . Explosions . | . . . . . . . Melee . | . . . . . . . Ramming . | . . . . . . . Kinetic 139 | . 139 . . . . . Thermal 88 | . 88 . . . . . Explosive . | . . . . . . . Electromagnetic . | . . . . . . . Impact . | . . . . . . . Slashing . | . . . . . . . Piercing . | . . . . . . . Highest Corruption 2 | . . . . . . 2 Average Corruption 2 | . . . . . . 2 Corruption Purged . | . . . . . . . Effects 4 | . . . . . . 4 Message Errors 3 | . . . . . . 3 Energy Discharges 1 | . . . . . . 1 Overload Shots . | . . . . . . . Overflow Damage . | . . . . . . . Projectiles . | . . . . . . . Explosions . | . . . . . . . Melee . | . . . . . . . Knockbacks . | . . . . . . . Impact . | . . . . . . . Kinetic . | . . . . . . . Secondary . | . . . . . . . Self-Inflicted Damage . | . . . . . . . Shots . | . . . . . . . Rammed . | . . . . . . . Targets Rammed . | . . . . . . . Kicked . | . . . . . . . Crushed . | . . . . . . . Highest Temperature 135 | . 135 . . . . . Average Temperature 57 | . 57 . . . . . Received Heat Transfer 177 | . 99 . 33 . 45 . Siege Activations . | . . . . . . . Robots Corrupted . | . . . . . . . Combat Hostiles . | . . . . . . . Parts Fried . | . . . . . . . Impact Corruptions . | . . . . . . . Robots Melted . | . . . . . . . Combat Hostiles . | . . . . . . . Parts Melted . | . . . . . . . Heat Transferred 259 | . 259 . . . . . Parts Sabotaged . | . . . . . . . Parts Stolen . | . . . . . . . Parts Stripped . | . . . . . . . Power Chain Reactions . | . . . . . . . Missiles Intercepted . | . . . . . . . Alert | -11 -10 -10 -9 -9 -8 -7 ------- Run | Scr Mat Min Mat Min Mat Fac Peak Influence 179 | . 179 5 86 21 57 36 Average Influence 41 | . 65 5 39 21 27 23 Maximum Alert Level . | . . . . . . . Low Security (%) 100 | 100 100 100 100 100 100 100 Level 1 . | . . . . . . . Level 2 . | . . . . . . . Level 3 . | . . . . . . . Level 4 . | . . . . . . . Level 5 . | . . . . . . . High Security . | . . . . . . . Max Security . | . . . . . . . Squads Dispatched 3 | . 1 . 1 . . 1 Investigation . | . . . . . . . Extermination . | . . . . . . . Reinforcement 3 | . 1 . 1 . . 1 Assault . | . . . . . . . Garrison . | . . . . . . . Intercept . | . . . . . . . Construction Impeded . | . . . . . . . Haulers Reinforced . | . . . . . . . Stealth | -11 -10 -10 -9 -9 -8 -7 --------- Run | Scr Mat Min Mat Min Mat Fac Distress Signals 3 | . 1 . 2 . . . Communications Jammed . | . . . . . . . Distress Signals . | . . . . . . . Times Spotted 43 | . 11 . 15 . 5 12 Peak Tracking Total 12 | . 4 . 12 . 5 7 Tactical Retreats 5 | . . . 2 . 1 2 Traps | -11 -10 -10 -9 -9 -8 -7 ------- Run | Scr Mat Min Mat Min Mat Fac Traps Triggered 1 | . . . . . . 1 Indirectly . | . . . . . . . Trap Hack Attempts . | . . . . . . . Triggered . | . . . . . . . Disarmed . | . . . . . . . Reprogrammed . | . . . . . . . Reused . | . . . . . . . Traps Extracted . | . . . . . . . Installed . | . . . . . . . Triggered . | . . . . . . . Machines | -11 -10 -10 -9 -9 -8 -7 ---------- Run | Scr Mat Min Mat Min Mat Fac Machines Disabled . | . . . . . . . Max in Single Turn . | . . . . . . . Machines Sabotaged . | . . . . . . . Garrisons Compromised . | . . . . . . . Overloaded Fab Kills . | . . . . . . . Fab Network Shutdowns . | . . . . . . . Hacking | -11 -10 -10 -9 -9 -8 -7 --------- Run | Scr Mat Min Mat Min Mat Fac Machines Accessed 6 | . 3 . 1 . 1 1 Terminals 4 | . 2 . 1 . 1 . Fabricators 1 | . . . . . . 1 Repair Stations . | . . . . . . . Recycling Units 1 | . 1 . . . . . Scanalyzers . | . . . . . . . Garrison Access . | . . . . . . . Total Hacks 10 | . 5 . 1 . 2 2 Successful 7 | . 4 . 1 . 1 1 Failed 3 | . 1 . . . 1 1 Catastrophic . | . . . . . . . Database Lockouts . | . . . . . . . Manual 4 | . 4 . . . . . Terminals 7 | . 4 . 1 . 2 . Fabricators 2 | . . . . . . 2 Repair Stations . | . . . . . . . Recycling Units 1 | . 1 . . . . . Scanalyzers . | . . . . . . . Garrison Access . | . . . . . . . Terminal Hacks 3 | . 1 . 1 . 1 . Record 2 | . 1 . 1 . . . Registered Components 1 | . . . . . 1 . Fabricator Hacks 1 | . . . . . . 1 Network Status 1 | . . . . . . 1 Repair Station Hacks . | . . . . . . . Recycling Unit Hacks 1 | . 1 . . . . . Report Inventory 1 | . 1 . . . . . Scanalyzer . | . . . . . . . Garrison Access Hacks . | . . . . . . . Unauthorized Hacks 2 | . 2 . . . . . Terminals 2 | . 2 . . . . . Assimilate 2 | . 2 . . . . . Fabricators . | . . . . . . . Repair Stations . | . . . . . . . Recycling Units . | . . . . . . . Scanalyzers . | . . . . . . . Garrison Access . | . . . . . . . Data Cores Recovered . | . . . . . . . Used . | . . . . . . . Hacking Detections 4 | . 2 . . . 1 1 Full Trace Events . | . . . . . . . Feedback Events . | . . . . . . . Feedback Blocked . | . . . . . . . Robot Schematics Acquired . | . . . . . . . Robots Built . | . . . . . . . Matter . | . . . . . . . Time . | . . . . . . . Total Robot Build Rating . | . . . . . . . Part Schematics Acquired . | . . . . . . . Parts Built . | . . . . . . . Matter . | . . . . . . . Time . | . . . . . . . Total Part Build Rating . | . . . . . . . Parts Repaired . | . . . . . . . Time . | . . . . . . . Parts Recycled . | . . . . . . . Recycled Matter . | . . . . . . . Retrieved Matter . | . . . . . . . Retrieved Components . | . . . . . . . Parts Scanalyzed . | . . . . . . . Part Schematics Acquired . | . . . . . . . Parts Damaged . | . . . . . . . Bothacking | -11 -10 -10 -9 -9 -8 -7 ------------ Run | Scr Mat Min Mat Min Mat Fac Used RIF Installer . | . . . . . . . Robots Hacked . | . . . . . . . Non-combat . | . . . . . . . Combat . | . . . . . . . Robot Hacks Applied . | . . . . . . . Relay Couplers Released . | . . . . . . . Robots Rewired . | . . . . . . . Allies Hacked . | . . . . . . . Hacks Repelled . | . . . . . . . Allies | -11 -10 -10 -9 -9 -8 -7 -------- Run | Scr Mat Min Mat Min Mat Fac Total Allies 1 | . 1 . . . . . Largest Group 1 | . 1 1 1 . . . Highest-Rated Group 10 | . 10 10 10 . . . Highest-Rated Ally 10 | . 10 10 10 . . . Total Orders 3 | . 3 . . . . . GOTO 2 | . 2 . . . . . FOLLOW 1 | . 1 . . . . . Ally Attacks . | . . . . . . . Total Damage . | . . . . . . . Kills . | . . . . . . . Allies Corrupted . | . . . . . . . Allies Melted . | . . . . . . . Intel | -11 -10 -10 -9 -9 -8 -7 ------- Run | Scr Mat Min Mat Min Mat Fac Robot Analysis Total . | . . . . . . . Derelict Logs Recovered . | . . . . . . . Drone Launches . | . . . . . . . Drone Recoveries . | . . . . . . . Exploration | -11 -10 -10 -9 -9 -8 -7 ------------- Run | Scr Mat Min Mat Min Mat Fac Turns Passed 1287 | 58 537 25 154 46 62 405 Spaces Moved 1808 | 47 674 49 384 114 134 406 Core 338 | 12 . . . . 3 323 Treads 83 | . . . . . . 83 Legs 262 | 35 227 . . . . . Wheels . | . . . . . . . Hover . | . . . . . . . Flight 1125 | . 447 49 384 114 131 . Fastest Speed 34 | 50 37 37 34 40 40 50 Average Speed 62 | 102 64 37 34 40 41 96 Slowest Speed 160 | 120 120 37 40 40 100 160 Overloaded Moves . | . . . . . . . Propulsion Burnouts . | . . . . . . . Robots Hopped 5 | . 1 . 2 1 1 . Cave-ins Triggered . | . . . . . . . Exploration Rate (%) 24 | 3 55 14 38 31 16 15 Regions Visited 6 Branch Regions 2 Pre-discovered Areas . | . . . . . . . Known Exits Taken 5 | . 1 1 1 1 1 . Unknown Exits Taken 1 | 1 . . . . . . Scrap Searched . | . . . . . . . Spaces Dug . | . . . . . . . Terrain Destroyed . | . . . . . . . Melee . | . . . . . . . Projectile . | . . . . . . . AOE . | . . . . . . . Actions | -11 -10 -10 -9 -9 -8 -7 --------- Run | Scr Mat Min Mat Min Mat Fac Total 1924 | 54 741 55 404 112 141 417 Wait 44 | . 23 7 14 . . . Move 1792 | 46 671 48 379 111 131 406 Hop 5 | . 1 . 2 1 1 . Pick Up 22 | 2 11 . 4 . 3 2 Fast Attach 10 | 6 1 . . . . 3 Attach 10 | . 3 . 2 . 3 2 Detach 5 | . 1 . . . 1 3 Swap 3 | . 2 . 1 . . . Drop 13 | . 8 . 2 . 2 1 Fire 20 | . 20 . . . . . Melee . | . . . . . . . Ram . | . . . . . . . Kick . | . . . . . . . Crush . | . . . . . . . Escape Stasis . | . . . . . . . Rewire . | . . . . . . . Trap . | . . . . . . . Miscellaneous . | . . . . . . . Route ------- -11/Scrapyard -10/Materials (discovered 3 exits: *Mat / *Min x2) -10/Mines -9/Materials -9/Mines -8/Materials -7/Factory History --------- Turn | Location | Event 4 | -11/Scrapyard | Discovered new exit (range 15) 59 | -11/Scrapyard | Entered Materials 298 | -10/Materials | Discovered new exit (range 12) 307 | -10/Materials | Build established: Mutant 424 | -10/Materials | Identified exit to Mines 439 | -10/Materials | Discovered exit to Mines (range 12) 567 | -10/Materials | Discovered new exit (range 5) 568 | -10/Materials | Identified exit to Materials 596 | -10/Materials | Entered Mines 596 | -10/Mines | Accompanied by 1 ally 610 | -10/Mines | Discovered exit to Materials (range 7) 621 | -10/Mines | Entered Materials 621 | -9/Materials | Accompanied by 1 ally 621 | -9/Materials | Evolved 2 slots: Propulsion x2 716 | -9/Materials | Build established: Scavenger-Mutant 752 | -9/Materials | Discovered new exit (range 13) 756 | -9/Materials | Identified exit to Mines 775 | -9/Materials | Entered Mines 799 | -9/Mines | Discovered new exit (range 6) 801 | -9/Mines | Identified exit to Materials 803 | -9/Mines | Lost 3 parts (1p2n) 821 | -9/Mines | Entered Materials 821 | -8/Materials | Evolved 2 slots: Utility x2 880 | -8/Materials | Discovered new exit (range 6) 882 | -8/Materials | Identified exit to Factory 883 | -8/Materials | Entered Factory 883 | -7/Factory | Evolved 2 slots: Utility x2 1112 | -7/Factory | Build established: Hacker-Mutant 1226 | -7/Factory | Core integrity fell below 50% 1240 | -7/Factory | Core integrity fell below 20% 1288 | -7/Factory | Destroyed by S-27 Virus with Autogun Last Messages --------------- 01117_ K-01 Serf collects debris. 01119_ ALERT: Hostiles spotted, dispatching reinforcements to Terminal F019. 01151_ Dropped Med. Treads. 01157_ Penetrated by Slug. 01167_ RK8LOW38TP&V01P=V/J3KLNQMH V 01178_ Discarded Adv. Visual Processing Unit. 01206_ Hacking Suite destroyed. 01223_ Sml. Storage Unit destroyed. 01226_ Acquired Hacking Suite. 01235_ Penetrated by Slug. 01245_ K-01 Serf collects debris. 01268_ 6C=PZAWM#TOT|ZW4O4BHEQ6 01269_ Slug penetrates U-05 Engineer. 01269_ U-05 Engineer destroyed. 01270_ U-05 Engineer lays Concrete. 01271_ R-06 Scavenger collects Welding Torch. 01272_ K-01 Serf collects debris. 01275_ R-06 Scavenger collects Structural Scanner. 01275_ K-01 Serf collects debris. Map ----- +----------------------------------------------------+ | ????????????????????# ?#% # """" ???? | | ????????????????????# ??#*= # """" "??? | | ????????????????????# ??# + """" "??? | | ????????????????????#####+####???# # """" "??? | | ????????????????????????# ???????# # """" """" | | ????????????????????????# ???????# + | | ????????????????????????# ????####+#/###########?? | | ????????????????????????# ##### #?????? | | ????????????????????????# + ! #?????? | | ????????????????????????# # #?????? | | ????????????????????????# # #?????? | | ????????????????????????# # """ """ #?????? | | ????????????????????????# # """ """ #?????? | | ????????????????????????+ s/ """ """ #?????? | | ????????????????????????# s# #?????? | | ????????????????????????# s # """ """ #?????? | | ????????????????????????# # """ """ ???????? | | ????????????????????????# # """ ""?????????? | | ????????????????????????#k # ?????????? | | ????????????????????????# #########??????????? | | ????????????????????????# u#??????????????????? | | ????????????????????????# #??????????????????? | | ????????????????????????# #??????????????????? | | ????????????????????????# k#??????????????????? | | ????????????????????????# #??????????????????? | | ????????????????????????#@ #??????????????????? | | ????????????????????????# #??????????????????? | | ????????????????????????# #??????????????????? | | ????????????????????????+ #??????????????????? | | ????????????????????????# #??????????????????? | | ????????????????????????# #??????????????????? | | ????????????????????????#w #??????????????????? | | ???????????????????????? ??????????????????? | | ???????????????????????? ?????????????????? | | ???????????????????????? ????????????????? | | ???????????????????????? u ????????????????? | | ???????????????????????? ???????????????? | | ???????????????????????? #####??????????????? | | ???????????????????????? #??????????????????? | | ???????????????????????? ???????????????????? | | ???????????????????????? ?????????????????????? | | ?????????????????????????????????????????????????? | | ?????????????????????????????????????????????????? | | ?????????????????????????????????????????????????? | | ?????????????????????????????????????????????????? | | ?????????????????????????????????????????????????? | | ?????????????????????????????????????????????????? | | ?????????????????????????????????????????????????? | | ?????????????????????????????????????????????????? | | ?????????????????????????????????????????????????? | +----------------------------------------------------+ Best States ------------- Heat Dissipation 34 Energy Generation 14 Energy Capacity 250 Matter Stores 300 Matter Capacity 300 Sight Range 20 Robot Scan Range 10 Terrain Scan Density 10 Evasion (%) 63 Recoil Reduction 2 Offensive Hacking 20 Item Schematics ----------------- None Robot Schematics ------------------ None Fabricated ------------ Nothing Alien Tech Used ----------------- None Achievements -------------- True Hacker Challenges ------------ None Game ------ Seed GhostHypervelocityReactor Manual? 0 Play Time 00:26:03 Cumulative 19.8 hours Start 2020.04.22 @ 22:10:35 End 2020.04.23 @ 11:56:54 Sessions 3 Manual Loads 0 Difficulty Rogue Special Mode None Game No. 31 Rogue 31 Adventurer 0 Explorer 0 Win Type - Total 0 Types 0/0/0/0/0/0/0 Lore% 14 Gallery% 28 Achievement% 24 Wizard Run 0 Options --------- ASCII 0 Keyboard 1 Movement Numpad Keybinds 0 Fullscreen 1 Font 18/SmallcapsGlow Map View 76x50 Tactical HUD 1 Map Filters NONE Filters NONE Steam 1 RUN: 2734e925-d836-4b89-8177-cb89e81f3b56